fUSD/lending_fUSD_20250823
["ID","MTS","AMOUNT","RATE_DAILY","PERIOD"]
[380948266,1755912652062,-400.0,0.00013698,2]
[380948267,1755912652071,-400.0,0.00013698,2]
[380948268,1755912652081,-400.0,0.00013698,2]
[380948269,1755912652091,-400.0,0.00013698,2]
[380948270,1755912652101,-400.0,0.00013698,2]
[380948271,1755912652110,-400.0,0.00013698,2]
[380948272,1755912652120,-400.0,0.00013698,2]
[380948273,1755912652130,-400.0,0.00013698,2]
[380948274,1755912652142,-400.0,0.00013698,2]
[380948275,1755912652153,-400.0,0.00013698,2]
[380948276,1755912652162,-541.01655552,0.00013698,2]
[380948277,1755912652172,-543.91,0.00013698,2]
[380948278,1755912652182,-428.36,0.00013698,2]
[380948279,1755912652192,-427.61,0.00013698,2]
[380948280,1755912652202,-1000.0,0.00013698,2]
[380948281,1755912652212,-400.0,0.00013698,2]
[380948282,1755912652222,-400.0,0.00013698,2]
[380948283,1755912652232,-400.0,0.00013698,2]
[380948284,1755912652241,-400.0,0.00013698,2]
[380948285,1755912652251,-763.66,0.00013698,2]
[380948286,1755912652260,-400.0,0.00013698,2]
[380948287,1755912652270,-400.0,0.00013698,2]
[380948288,1755912652280,-400.0,0.00013698,2]
[380948289,1755912652289,-171.14727462,0.00013698,2]
[380948290,1755912652298,-400.0,0.00013698,2]
[380948291,1755912652308,-400.0,0.00013698,2]
[380948292,1755912652317,-400.0,0.00013698,2]
[380948293,1755912652327,-400.0,0.00013698,2]
[380948294,1755912652337,-482.08,0.00013698,2]
[380948295,1755912652347,-401.5,0.00013698,2]
[380948296,1755912652359,-552.38,0.00013698,2]
[380948297,1755912652370,-400.0,0.00013698,2]
[380948298,1755912652379,-400.0,0.00013698,2]
[380948299,1755912652389,-400.0,0.00013698,2]
[380948300,1755912652401,-793.95,0.00013698,2]
[380948301,1755912652411,-400.0,0.00013698,2]
[380948302,1755912652420,-400.0,0.00013698,2]
[380948303,1755912652431,-548.8,0.00013698,2]
[380948304,1755912652442,-400.0,0.00013698,2]
[380948305,1755912652452,-400.0,0.00013698,2]
[380948306,1755912652462,-400.0,0.00013698,2]
[380948307,1755912652472,-437.68,0.00013698,2]
[380948308,1755912652481,-400.0,0.00013698,2]
[380948309,1755912652491,-400.0,0.00013698,2]
[380948310,1755912652502,-400.0,0.00013698,2]
[380948311,1755912652511,-543.95,0.00013698,2]
[380948312,1755912652522,-400.0,0.00013698,2]
[380948313,1755912652532,-400.0,0.00013698,2]
[380948314,1755912652932,-400.0,0.00013698,2]
[380948315,1755912652942,-400.0,0.00013698,2]
[380948316,1755912652952,-400.0,0.00013698,2]
[380948317,1755912652961,-476.99,0.00013698,2]
[380948318,1755912652971,-400.0,0.00013698,2]
[380948319,1755912652980,-400.0,0.00013698,2]
[380948320,1755912652990,-465.9,0.00013698,2]
[380948321,1755912653000,-400.0,0.00013698,2]
[380948322,1755912653009,-400.0,0.00013698,2]
[380948323,1755912653019,-400.0,0.00013698,2]
[380948324,1755912653029,-507.03,0.00013698,2]
[380948325,1755912653038,-400.0,0.00013698,2]
[380948326,1755912653048,-400.0,0.00013698,2]
[380948327,1755912653058,-400.0,0.00013698,2]
[380948328,1755912653067,-400.0,0.00013698,2]
[380948329,1755912653077,-400.0,0.00013698,2]
[380948330,1755912653087,-483.84,0.00013698,2]
[380948331,1755912653096,-400.0,0.00013698,2]
[380948332,1755912653105,-543.86,0.00013698,2]
[380948333,1755912653115,-400.0,0.00013698,2]
[380948334,1755912653124,-442.12680757,0.00013698,2]
[380948335,1755912653134,-772.08,0.00013698,2]
[380948336,1755912653145,-707.33,0.00013698,2]
[380948337,1755912653155,-607.86,0.00013698,2]
[380948338,1755912653164,-400.0,0.00013698,2]
[380948339,1755912653174,-577.68,0.00013698,2]
[380948340,1755912653184,-400.0,0.00013698,2]
[380948341,1755912653193,-446.17,0.00013698,2]
[380948342,1755912653203,-276.34922962,0.00013698,2]
[380948343,1755912653213,-499.75,0.00013698,2]
[380948344,1755912653222,-752.86,0.00013698,2]
[380948345,1755912653232,-475.34,0.00013698,2]
[380948346,1755912653242,-156.17461,0.00013698,2]
[380948347,1755912653252,-400.0,0.00013698,2]
[380948348,1755912653262,-602.1,0.00013698,2]
[380948349,1755912653272,-400.0,0.00013698,2]
[380948350,1755912653282,-496.62,0.00013698,2]
[380948351,1755912653292,-480.32,0.00013698,2]
[380948352,1755912653301,-400.0,0.00013698,2]
[380948353,1755912653310,-400.0,0.00013698,2]
[380948354,1755912653320,-400.0,0.00013698,2]
[380948355,1755912653329,-400.0,0.00013698,2]
[380948356,1755912653338,-400.0,0.00013698,2]
[380948357,1755912653348,-633.62,0.00013698,2]
[380948358,1755912653358,-400.0,0.00013698,2]
[380948359,1755912653370,-400.0,0.00013698,2]
[380948360,1755912653380,-400.0,0.00013698,2]
[380948361,1755912653390,-400.0,0.00013698,2]
[380948362,1755912653402,-396.21378365,0.00013698,2]
[380948363,1755912653412,-400.0,0.00013698,2]
[380948364,1755912653421,-400.0,0.00013698,2]
[380948365,1755912653431,-614.22,0.00013698,2]
[380948366,1755912653440,-400.0,0.00013698,2]
[380948367,1755912653449,-460.0,0.00013698,2]
[380948368,1755912653460,-560.58,0.00013698,2]
[380948369,1755912653469,-500.59,0.00013698,2]
[380948370,1755912653478,-400.0,0.00013698,2]
[380948371,1755912653488,-424.97,0.00013698,2]
[380948372,1755912653497,-400.0,0.00013698,2]
[380948373,1755912653507,-428.79,0.00013698,2]
[380948374,1755912653517,-400.0,0.00013698,2]
[380948375,1755912653526,-400.0,0.00013698,2]
[380948376,1755912653535,-416.01,0.00013698,2]
[380948377,1755912653545,-400.0,0.00013698,2]
[380948378,1755912653554,-400.0,0.00013698,2]
[380948379,1755912653564,-400.0,0.00013698,2]
[380948380,1755912653573,-400.0,0.00013698,2]
[380948381,1755912653583,-425.3,0.00013698,2]
[380948382,1755912653592,-400.0,0.00013698,2]
[380948383,1755912653602,-508.68,0.00013698,2]
[380948384,1755912653611,-400.0,0.00013698,2]
[380948385,1755912653620,-535.36,0.00013698,2]
[380948386,1755912653630,-400.0,0.00013698,2]
[380948387,1755912653639,-193.17723,0.00013698,2]
[380948388,1755912653651,-466.29,0.00013698,2]
[380948389,1755912653660,-400.0,0.00013698,2]
[380948390,1755912653670,-400.0,0.00013698,2]
[380948391,1755912653679,-400.0,0.00013698,2]
[380948392,1755912653690,-470.91,0.00013698,2]
[380948393,1755912653700,-535.1,0.00013698,2]
[380948394,1755912653710,-400.0,0.00013698,2]
[380948395,1755912653719,-400.0,0.00013698,2]
[380948396,1755912653729,-544.24,0.00013698,2]
[380948397,1755912653738,-418.5,0.00013698,2]
[380948398,1755912653747,-400.0,0.00013698,2]
[380948399,1755912653757,-400.0,0.00013698,2]
[380948400,1755912653766,-200.0,0.00013698,2]
[380948401,1755912653775,-440.43,0.00013698,2]
[380948402,1755912653785,-400.0,0.00013698,2]
[380948403,1755912653794,-400.0,0.00013698,2]
[380948404,1755912653804,-747.8,0.00013698,2]
[380948405,1755912653813,-400.0,0.00013698,2]
[380948406,1755912653823,-400.0,0.00013698,2]
[380948407,1755912653832,-433.94,0.00013698,2]
[380948408,1755912653842,-400.0,0.00013698,2]
[380948409,1755912653851,-400.0,0.00013698,2]
[380948410,1755912653861,-400.0,0.00013698,2]
[380948411,1755912653871,-400.0,0.00013698,2]
[380948412,1755912653881,-400.0,0.00013698,2]
[380948413,1755912653890,-1000.0,0.00013698,2]
[380948414,1755912653901,-472.48,0.00013698,2]
[380948415,1755912653911,-400.0,0.00013698,2]
[380948416,1755912653921,-400.0,0.00013698,2]
[380948417,1755912653931,-400.0,0.00013698,2]
[380948418,1755912653940,-855.010025,0.00013698,2]
[380948419,1755912653950,-400.0,0.00013698,2]
[380948420,1755912653961,-400.0,0.00013698,2]
[380948421,1755912653971,-400.0,0.00013698,2]
[380948422,1755912653982,-400.0,0.00013698,2]
[380948423,1755912653994,-400.0,0.00013698,2]
[380948424,1755912654004,-400.0,0.00013698,2]
[380948425,1755912654013,-400.0,0.00013698,2]
[380948426,1755912654022,-400.0,0.00013698,2]
[380948427,1755912654032,-400.0,0.00013698,2]
[380948428,1755912654042,-631.75,0.00013698,2]
[380948429,1755912654052,-400.0,0.00013698,2]
[380948430,1755912654061,-400.0,0.00013698,2]
[380948431,1755912654071,-479.25,0.00013698,2]
[380948432,1755912654081,-400.0,0.00013698,2]
[380948433,1755912654091,-400.0,0.00013698,2]
[380948434,1755912654100,-400.0,0.00013698,2]
[380948435,1755912654110,-400.0,0.00013698,2]
[380948436,1755912654120,-737.35,0.00013698,2]
[380948437,1755912654130,-473.06,0.00013698,2]
[380948438,1755912654139,-400.0,0.00013698,2]
[380948439,1755912654150,-400.0,0.00013698,2]
[380948440,1755912654160,-464.53,0.00013698,2]
[380948441,1755912654169,-400.0,0.00013698,2]
[380948442,1755912654179,-400.0,0.00013698,2]
[380948443,1755912654189,-400.0,0.00013698,2]
[380948444,1755912654198,-605.41,0.00013698,2]
[380948445,1755912654208,-451.38,0.00013698,2]
[380948446,1755912654217,-400.0,0.00013698,2]
[380948447,1755912654227,-763.68,0.00013698,2]
[380948448,1755912654238,-349.92,0.00013698,2]
[380948449,1755912654247,-400.0,0.00013698,2]
[380948450,1755912654256,-400.0,0.00013698,2]
[380948451,1755912654266,-400.0,0.00013698,2]
[380948452,1755912654275,-400.0,0.00013698,2]
[380948453,1755912654285,-400.0,0.00013698,2]
[380948454,1755912654294,-400.0,0.00013698,2]
[380948455,1755912654304,-400.0,0.00013698,2]
[380948456,1755912654313,-400.0,0.00013698,2]
[380948457,1755912654323,-1076.1,0.00013698,2]
[380948458,1755912654333,-437.52,0.00013698,2]
[380948459,1755912654343,-496.31,0.00013698,2]
[380948460,1755912654353,-400.0,0.00013698,2]
[380948461,1755912654365,-400.0,0.00013698,2]
[380948462,1755912654375,-400.0,0.00013698,2]
[380948463,1755912654384,-400.0,0.00013698,2]
[380948464,1755912654395,-517.63,0.00013698,2]
[380948465,1755912654406,-400.0,0.00013698,2]
[380948466,1755912654415,-400.0,0.00013698,2]
[380948467,1755912654425,-400.0,0.00013698,2]
[380948468,1755912654435,-538.24,0.00013698,2]
[380948469,1755912654446,-531.82,0.00013698,2]
[380948470,1755912654457,-400.0,0.00013698,2]
[380948471,1755912654467,-235.795952,0.00013698,2]
[380948472,1755912654477,-599.57,0.00013698,2]
[380948473,1755912654487,-400.0,0.00013698,2]
[380948474,1755912654497,-400.0,0.00013698,2]
[380948475,1755912654507,-400.0,0.00013698,2]
[380948476,1755912654517,-481.87,0.00013698,2]
[380948477,1755912654527,-578.64,0.00013698,2]
[380948478,1755912654537,-876.45,0.00013698,2]
[380948479,1755912654547,-400.0,0.00013698,2]
[380948480,1755912654557,-400.0,0.00013698,2]
[380948481,1755912654567,-159.35704035,0.00013698,2]
[380948482,1755912654576,-750.69,0.00013698,2]
[380948483,1755912654586,-596.46,0.00013698,2]
[380948484,1755912654596,-400.0,0.00013698,2]
[380948485,1755912654605,-400.0,0.00013698,2]
[380948486,1755912654615,-483.91,0.00013698,2]
[380948487,1755912654625,-2560.03,0.00013698,2]
[380948488,1755912654634,-400.0,0.00013698,2]
[380948489,1755912654643,-400.0,0.00013698,2]
[380948490,1755912654653,-429.94,0.00013698,2]
[380948491,1755912654663,-400.0,0.00013698,2]
[380948492,1755912654672,-400.0,0.00013698,2]
[380948493,1755912654681,-400.0,0.00013698,2]
[380948494,1755912654691,-400.0,0.00013698,2]
[380948495,1755912654701,-400.0,0.00013698,2]
[380948496,1755912654711,-511.98,0.00013698,2]
[380948497,1755912654720,-400.0,0.00013698,2]
[380948498,1755912654730,-583.44,0.00013698,2]
[380948499,1755912654739,-400.0,0.00013698,2]
[380948500,1755912654749,-400.0,0.00013698,2]
[380948501,1755912654759,-412.65,0.00013698,2]
[380948502,1755912654768,-400.0,0.00013698,2]
[380948503,1755912654778,-400.0,0.00013698,2]
[380948504,1755912654788,-789.4,0.00013698,2]
[380948505,1755912654797,-165.091098,0.00013698,2]
[380948506,1755912654807,-714.55,0.00013698,2]
[380948507,1755912654816,-466.47,0.00013698,2]
[380948508,1755912654826,-400.0,0.00013698,2]
[380948509,1755912654836,-400.0,0.00013698,2]
[380948510,1755912654846,-483.0,0.00013698,2]
[380948511,1755912654856,-638.96,0.00013698,2]
[380948512,1755912654866,-411.07,0.00013698,2]
[380948513,1755912654876,-626.45,0.00013698,2]
[380948514,1755912654886,-400.0,0.00013698,2]
[380948515,1755912654897,-400.0,0.00013698,2]
[380948516,1755912654906,-459.86,0.00013698,2]
[380948517,1755912654916,-590.56,0.00013698,2]
[380948518,1755912654926,-400.0,0.00013698,2]
[380948519,1755912654935,-7170.55,0.00013698,2]
[380948520,1755912654945,-400.0,0.00013698,2]
[380948521,1755912654954,-400.0,0.00013698,2]
[380948522,1755912654964,-489.74,0.00013698,2]
[380948523,1755912654973,-400.0,0.00013698,2]
[380948524,1755912654983,-414.4,0.00013698,2]
[380948525,1755912654993,-755.36,0.00013698,2]
[380948526,1755912655003,-798.6,0.00013698,2]
[380948527,1755912655013,-400.0,0.00013698,2]
[380948528,1755912655023,-400.0,0.00013698,2]
[380948529,1755912655032,-400.0,0.00013698,2]
[380948530,1755912655042,-2114.53,0.00013698,2]
[380948531,1755912655052,-556.35,0.00013698,2]
[380948532,1755912655061,-400.0,0.00013698,2]
[380948533,1755912655070,-522.88,0.00013698,2]
[380948534,1755912655080,-400.0,0.00013698,2]
[380948535,1755912655089,-400.0,0.00013698,2]
[380948536,1755912655099,-400.0,0.00013698,2]
[380948537,1755912655108,-400.0,0.00013698,2]
[380948538,1755912655118,-446.5,0.00013698,2]
[380948539,1755912655128,-2594.59,0.00013698,2]
[380948540,1755912655137,-400.0,0.00013698,2]
[380948541,1755912655147,-400.0,0.00013698,2]
[380948542,1755912655157,-400.0,0.00013698,2]
[380948543,1755912655166,-400.0,0.00013698,2]
[380948544,1755912655176,-400.0,0.00013698,2]
[380948545,1755912655186,-315.31444223,0.00013698,2]
[380948546,1755912655292,-529.92,0.00013698,2]
[380948547,1755912655303,-705.67,0.00013698,2]
[380948548,1755912655312,-896.87,0.00013698,2]
[380948549,1755912655322,-1094.77,0.00013698,2]
[380948550,1755912655331,-400.0,0.00013698,2]
[380948551,1755912655341,-741.74,0.00013698,2]
[380948552,1755912655350,-400.0,0.00013698,2]
[380948553,1755912655362,-869.76,0.00013698,2]
[380948554,1755912655372,-418.69,0.00013698,2]
[380948555,1755912655382,-400.0,0.00013698,2]
[380948556,1755912655391,-400.0,0.00013698,2]
[380948557,1755912655401,-400.0,0.00013698,2]
[380948558,1755912655410,-400.0,0.00013698,2]
[380948559,1755912655420,-235.795947,0.00013698,2]
[380948560,1755912655428,-562.13,0.00013698,2]
[380948561,1755912655437,-437.77,0.00013698,2]
[380948562,1755912655446,-1048.91,0.00013698,2]
[380948563,1755912655456,-541.27,0.00013698,2]
[380948564,1755912655466,-723.99,0.00013698,2]
[380948565,1755912655475,-400.0,0.00013698,2]
[380948566,1755912655485,-400.0,0.00013698,2]
[380948567,1755912655494,-530.85,0.00013698,2]
[380948568,1755912655504,-4903.23,0.00013698,2]
[380948569,1755912655513,-400.0,0.00013698,2]
[380948570,1755912655523,-614.11,0.00013698,2]
[380948571,1755912655532,-323.28969414,0.00013698,2]
[380948572,1755912655541,-400.0,0.00013698,2]
[380948573,1755912655551,-963.36,0.00013698,2]
[380948574,1755912655560,-400.0,0.00013698,2]
[380948575,1755912655570,-685.08,0.00013698,2]
[380948576,1755912655579,-410.70201784,0.00013698,2]
[380948577,1755912655589,-508.77,0.00013698,2]
[380948578,1755912655598,-400.0,0.00013698,2]
[380948579,1755912655608,-956.53,0.00013698,2]
[380948580,1755912655618,-400.0,0.00013698,2]
[380948581,1755912655629,-690.94,0.00013698,2]
[380948582,1755912655640,-400.0,0.00013698,2]
[380948583,1755912655651,-400.0,0.00013698,2]
[380948584,1755912655661,-400.0,0.00013698,2]
[380948585,1755912655671,-781.78,0.00013698,2]
[380948586,1755912655680,-516.0,0.00013698,2]
[380948587,1755912655690,-400.0,0.00013698,2]
[380948588,1755912655699,-407.82,0.00013698,2]
[380948589,1755912655710,-400.0,0.00013698,2]
[380948590,1755912655720,-2566.25,0.00013698,2]
[380948591,1755912655729,-400.0,0.00013698,2]
[380948592,1755912655739,-400.0,0.00013698,2]
[380948593,1755912655748,-573.49,0.00013698,2]
[380948594,1755912655758,-166.839125,0.00013698,2]
[380948595,1755912655768,-400.0,0.00013698,2]
[380948596,1755912655778,-400.0,0.00013698,2]
[380948597,1755912655787,-400.0,0.00013698,2]
[380948598,1755912655796,-548.91,0.00013698,2]
[380948599,1755912655805,-400.0,0.00013698,2]
[380948600,1755912655815,-1155.0,0.00013698,2]
[380948601,1755912655824,-719.87,0.00013698,2]
[380948602,1755912655833,-468.96,0.00013698,2]
[380948603,1755912655842,-947.84,0.00013698,2]
[380948604,1755912655851,-659.68,0.00013698,2]
[380948605,1755912655861,-400.0,0.00013698,2]
[380948606,1755912655870,-1053.52,0.00013698,2]
[380948607,1755912655879,-691.7,0.00013698,2]
[380948608,1755912655887,-500.0,0.00013698,2]
[380948609,1755912655895,-500.0,0.00013698,2]
[380948610,1755912655905,-400.0,0.00013698,2]
[380948611,1755912655913,-500.0,0.00013698,2]
[380948612,1755912655921,-500.0,0.00013698,2]
[380948613,1755912655930,-557.81,0.00013698,2]
[380948614,1755912655940,-621.05,0.00013698,2]
[380948615,1755912655949,-400.0,0.00013698,2]
[380948616,1755912655958,-500.0,0.00013698,2]
[380948617,1755912655967,-500.0,0.00013698,2]
[380948618,1755912655977,-1327.17,0.00013698,2]
[380948619,1755912655987,-500.0,0.00013698,2]
[380948620,1755912655996,-500.0,0.00013698,2]
[380948621,1755912656005,-500.0,0.00013698,2]
[380948622,1755912656015,-500.0,0.00013698,2]
[380948623,1755912656025,-500.0,0.00013698,2]
[380948624,1755912656034,-400.0,0.00013698,2]
[380948625,1755912656044,-153.492186,0.00013698,2]
[380948626,1755912656054,-400.0,0.00013698,2]
[380948627,1755912656063,-811.77,0.00013698,2]
[380948628,1755912656072,-532.88,0.00013698,2]
[380948629,1755912656082,-400.0,0.00013698,2]
[380948630,1755912656091,-448.05,0.00013698,2]
[380948631,1755912656100,-482.24,0.00013698,2]
[380948632,1755912656110,-400.0,0.00013698,2]
[380948633,1755912656119,-825.64,0.00013698,2]
[380948634,1755912656129,-786.36,0.00013698,2]
[380948635,1755912656138,-508.4,0.00013698,2]
[380948636,1755912656148,-400.0,0.00013698,2]
[380948637,1755912656158,-400.0,0.00013698,2]
[380948638,1755912656167,-400.0,0.00013698,2]
[380948639,1755912656177,-1160.25,0.00013698,2]
[380948640,1755912656186,-400.0,0.00013698,2]
[380948641,1755912656196,-400.0,0.00013698,2]
[380948642,1755912656205,-400.0,0.00013698,2]
[380948643,1755912656214,-471.12,0.00013698,2]
[380948644,1755912656224,-478.08,0.00013698,2]
[380948645,1755912656234,-522.09,0.00013698,2]
[380948646,1755912656244,-400.0,0.00013698,2]
[380948647,1755912656254,-400.0,0.00013698,2]
[380948648,1755912656265,-400.0,0.00013698,2]
[380948649,1755912656275,-876.0,0.00013698,2]
[380948650,1755912656285,-1658.24,0.00013698,2]
[380948651,1755912656294,-400.0,0.00013698,2]
[380948652,1755912656304,-400.0,0.00013698,2]
[380948653,1755912656313,-400.0,0.00013698,2]
[380948654,1755912656323,-413.45,0.00013698,2]
[380948655,1755912656333,-400.01,0.00013698,2]
[380948656,1755912656343,-928.99,0.00013698,2]
[380948657,1755912656353,-535.34,0.00013698,2]
[380948658,1755912656367,-416.84317161,0.00013698,2]
[380948659,1755912656377,-1082.57,0.00013698,2]
[380948660,1755912656386,-400.0,0.00013698,2]
[380948661,1755912656395,-599.68,0.00013698,2]
[380948662,1755912656406,-581.91,0.00013698,2]
[380948663,1755912656415,-576.13,0.00013698,2]
[380948664,1755912656424,-400.0,0.00013698,2]
[380948665,1755912656435,-808.82,0.00013698,2]
[380948666,1755912656444,-677.9,0.00013698,2]
[380948667,1755912656453,-704.93,0.00013698,2]
[380948668,1755912656463,-1628.12,0.00013698,2]
[380948669,1755912656471,-629.77,0.00013698,2]
[380948670,1755912656481,-400.0,0.00013698,2]
[380948671,1755912656490,-458.74,0.00013698,2]
[380948672,1755912656499,-909.17,0.00013698,2]
[380948673,1755912656508,-400.0,0.00013698,2]
[380948674,1755912656518,-757.81,0.00013698,2]
[380948675,1755912656527,-235.795947,0.00013698,2]
[380948676,1755912656537,-412.49,0.00013698,2]
[380948677,1755912656547,-400.0,0.00013698,2]
[380948678,1755912656556,-562.56,0.00013698,2]
[380948679,1755912656565,-400.0,0.00013698,2]
[380948680,1755912656574,-901.46,0.00013698,2]
[380948681,1755912656584,-400.0,0.00013698,2]
[380948682,1755912656593,-556.37,0.00013698,2]
[380948683,1755912656602,-400.0,0.00013698,2]
[380948684,1755912656611,-400.0,0.00013698,2]
[380948685,1755912656620,-699.23,0.00013698,2]
[380948686,1755912656630,-554.4,0.00013698,2]
[380948687,1755912656640,-627.55,0.00013698,2]
[380948688,1755912656651,-442.39,0.00013698,2]
[380948689,1755912656660,-400.0,0.00013698,2]
[380948690,1755912656670,-493.66,0.00013698,2]
[380948691,1755912656679,-475.41,0.00013698,2]
[380948692,1755912656688,-400.0,0.00013698,2]
[380948693,1755912656698,-618.33,0.00013698,2]
[380948694,1755912656706,-400.0,0.00013698,2]
[380948695,1755912656716,-400.0,0.00013698,2]
[380948696,1755912656725,-1043.76,0.00013698,2]
[380948697,1755912656734,-179.85721902,0.00013698,2]
[380948698,1755912656743,-400.0,0.00013698,2]
[380948699,1755912656752,-400.0,0.00013698,2]
[380948700,1755912656761,-400.0,0.00013698,2]
[380948701,1755912656771,-165.091095,0.00013698,2]
[380948702,1755912656780,-427.73,0.00013698,2]
[380948703,1755912656789,-415.82,0.00013698,2]
[380948704,1755912656798,-501.87,0.00013698,2]
[380948705,1755912656807,-537.21,0.00013698,2]
[380948706,1755912656816,-491.94,0.00013698,2]
[380948707,1755912656825,-682.29,0.00013698,2]
[380948708,1755912656834,-400.0,0.00013698,2]
[380948709,1755912656843,-468.97,0.00013698,2]
[380948710,1755912656853,-400.0,0.00013698,2]
[380948711,1755912656862,-577.38,0.00013698,2]
[380948712,1755912656871,-500.0,0.00013698,2]
[380948713,1755912656881,-400.0,0.00013698,2]
[380948714,1755912656890,-640.17,0.00013698,2]
[380948715,1755912656900,-568.93,0.00013698,2]
[380948716,1755912656910,-400.0,0.00013698,2]
[380948717,1755912656919,-400.0,0.00013698,2]
[380948718,1755912656928,-620.18,0.00013698,2]
[380948719,1755912656938,-1005.26,0.00013698,2]
[380948720,1755912656947,-933.58,0.00013698,2]
[380948721,1755912656956,-457.02,0.00013698,2]
[380948722,1755912656965,-773.99,0.00013698,2]
[380948723,1755912656975,-400.0,0.00013698,2]
[380948724,1755912656984,-400.0,0.00013698,2]
[380948725,1755912656993,-400.0,0.00013698,2]
[380948726,1755912657003,-400.0,0.00013698,2]
[380948727,1755912657012,-400.0,0.00013698,2]
[380948728,1755912657021,-400.0,0.00013698,2]
[380948729,1755912657030,-400.0,0.00013698,2]
[380948730,1755912657040,-610.39,0.00013698,2]
[380948731,1755912657049,-153.492172,0.00013698,2]
[380948732,1755912657059,-400.0,0.00013698,2]
[380948733,1755912657068,-605.05,0.00013698,2]
[380948734,1755912657078,-407.11,0.00013698,2]
[380948735,1755912657087,-400.0,0.00013698,2]
[380948736,1755912657096,-646.19,0.00013698,2]
[380948737,1755912657106,-400.0,0.00013698,2]
[380948738,1755912657115,-400.0,0.00013698,2]
[380948739,1755912657125,-938.83,0.00013698,2]
[380948740,1755912657135,-431.04,0.00013698,2]
[380948741,1755912657144,-400.0,0.00013698,2]
[380948742,1755912657154,-490.42,0.00013698,2]
[380948743,1755912657164,-400.0,0.00013698,2]
[380948744,1755912657173,-400.0,0.00013698,2]
[380948745,1755912657182,-664.71,0.00013698,2]
[380948746,1755912657191,-1070.54,0.00013698,2]
[380948747,1755912657200,-665.32,0.00013698,2]
[380948748,1755912657209,-546.05,0.00013698,2]
[380948749,1755912657219,-410.97,0.00013698,2]
[380948750,1755912657228,-570.73,0.00013698,2]
[380948751,1755912657238,-716.24,0.00013698,2]
[380948752,1755912657247,-400.0,0.00013698,2]
[380948753,1755912657256,-400.0,0.00013698,2]
[380948754,1755912657266,-697.95,0.00013698,2]
[380948755,1755912657276,-731.6,0.00013698,2]
[380948756,1755912657285,-312.12540224,0.00013698,2]
[380948757,1755912657294,-400.0,0.00013698,2]
[380948758,1755912657303,-400.0,0.00013698,2]
[380948759,1755912657312,-509.97,0.00013698,2]
[380948760,1755912657322,-1401.51,0.00013698,2]
[380948761,1755912657331,-400.0,0.00013698,2]
[380948762,1755912657341,-474.27,0.00013698,2]
[380948763,1755912657351,-1143.48,0.00013698,2]
[380948764,1755912657365,-400.0,0.00013698,2]
[380948765,1755912657375,-633.21,0.00013698,2]